[Event "*** Titled Tuesday Blitz"]
[Site "Chess.com"]
[Date "2021.04.27"]
[Round "3"]
[White "PelinGorki"]
[Black "MeekinsKris"]
[Result "1-0"]
[WhiteElo "2512"]
[BlackElo "2210"]
[TimeControl "180+1"]
[EndTime "10:28:58 PDT"]
[Termination "PelinGorki won by resignation"]

1. e4 {[%clk 0:03:00.9]} 1... e5 {[%clk 0:02:59.1]} 2. Nc3 {[%clk 0:03:00.4]}
2... Nf6 {[%clk 0:02:55.9]} 3. Bc4 {[%clk 0:03:00.4]} 3... Nc6 {[%clk
0:02:54.2]} 4. d3 {[%clk 0:03:00.3]} 4... Bc5 {[%clk 0:02:53.1]} 5. f4 {[%clk
0:03:00.2]} 5... d6 {[%clk 0:02:49.2]} 6. Nf3 {[%clk 0:03:00.3]} 6... Bg4 {[%clk
0:02:22]} 7. Na4 {[%clk 0:02:59.3]} 7... Bb6 {[%clk 0:02:16.2]} 8. Nxb6 {[%clk
0:02:58.4]} 8... axb6 {[%clk 0:02:17.1]} 9. O-O {[%clk 0:02:57.3]} 9... O-O
{[%clk 0:02:08.7]} 10. c3 {[%clk 0:02:56.7]} 10... d5 {[%clk 0:02:01.6]} 11.
exd5 {[%clk 0:02:53.7]} 11... Nxd5 {[%clk 0:02:02.5]} 12. h3 {[%clk 0:02:44.3]}
12... Bxf3 {[%clk 0:01:58.9]} 13. Qxf3 {[%clk 0:02:45.2]} 13... Nxf4 {[%clk
0:01:59]} 14. Bxf4 {[%clk 0:02:45.1]} 14... exf4 {[%clk 0:01:59]} 15. Qxf4
{[%clk 0:02:44.2]} 15... Qd7 {[%clk 0:01:57.1]} 16. d4 {[%clk 0:02:36.8]} 16...
Kh8 {[%clk 0:01:47.1]} 17. Rf3 {[%clk 0:02:35.9]} 17... Rae8 {[%clk 0:01:43.3]}
18. Raf1 {[%clk 0:02:32.3]} 18... f5 {[%clk 0:01:42.2]} 19. Kh1 {[%clk
0:02:09.8]} 19... Rf6 {[%clk 0:01:37.7]} 20. Qg5 {[%clk 0:02:01.7]} 20... Ref8
{[%clk 0:01:35.7]} 21. Rf4 {[%clk 0:01:57.9]} 21... h6 {[%clk 0:01:25.6]} 22.
Qh5 {[%clk 0:01:56.5]} 22... Ne7 {[%clk 0:01:19.6]} 23. Bd3 {[%clk 0:01:35]}
23... Qe8 {[%clk 0:01:01.7]} 24. Qxe8 {[%clk 0:01:08.9]} 24... Rxe8 {[%clk
0:01:02.6]} 25. Bxf5 {[%clk 0:01:09]} 25... Ref8 {[%clk 0:00:58.4]} 26. g4
{[%clk 0:01:07.3]} 26... g6 {[%clk 0:00:57]} 27. Re4 {[%clk 0:01:02.2]} 27...
Nxf5 {[%clk 0:00:56.3]} 28. gxf5 {[%clk 0:01:02]} 28... gxf5 {[%clk 0:00:35.5]}
29. Re7 {[%clk 0:01:01]} 29... R8f7 {[%clk 0:00:35.5]} 30. Re8+ {[%clk
0:01:00.7]} 30... Kh7 {[%clk 0:00:35.2]} 31. Kg2 {[%clk 0:00:59.4]} 31... f4
{[%clk 0:00:34.7]} 32. Kf3 {[%clk 0:00:59]} 32... Rg6 {[%clk 0:00:34.1]} 33. Ke4
{[%clk 0:00:56.3]} 33... Rg2 {[%clk 0:00:29.8]} 34. Rxf4 {[%clk 0:00:47.8]}
34... Rd7 {[%clk 0:00:29.5]} 35. Kd3 {[%clk 0:00:36.8]} 35... Rxb2 {[%clk
0:00:29]} 36. Re2 {[%clk 0:00:34.3]} 36... Rxe2 {[%clk 0:00:28]} 37. Kxe2 {[%clk
0:00:35.2]} 37... Kg6 {[%clk 0:00:28.2]} 38. Kd3 {[%clk 0:00:34]} 38... Kg5
{[%clk 0:00:28.2]} 39. Rf8 {[%clk 0:00:34]} 39... Kh4 {[%clk 0:00:24.3]} 40. Rf3
{[%clk 0:00:31.5]} 40... Rg7 {[%clk 0:00:22.3]} 41. Kc4 {[%clk 0:00:31.3]} 41...
Rg6 {[%clk 0:00:18.5]} 42. Kd5 {[%clk 0:00:30.2]} 42... Rc6 {[%clk 0:00:18.3]}
43. Ke5 {[%clk 0:00:27.8]} 43... Kg5 {[%clk 0:00:18.7]} 44. Rg3+ {[%clk
0:00:24.8]} 44... Kh5 {[%clk 0:00:18.5]} 45. d5 {[%clk 0:00:24]} 45... Rc4
{[%clk 0:00:17.2]} 46. Ke6 {[%clk 0:00:19.3]} 46... Ra4 {[%clk 0:00:16.3]} 47.
Kd7 {[%clk 0:00:16.7]} 47... c6 {[%clk 0:00:16.4]} 48. d6 {[%clk 0:00:16]} 48...
Rxa2 {[%clk 0:00:16.3]} 49. Kc7 {[%clk 0:00:15.8]} 49... Rd2 {[%clk 0:00:16.3]}
50. d7 {[%clk 0:00:15.8]} 50... Kh4 {[%clk 0:00:16.7]} 51. Re3 {[%clk
0:00:15.3]} 51... b5 {[%clk 0:00:13.9]} 52. d8=Q+ {[%clk 0:00:15.3]} 52... Rxd8
{[%clk 0:00:14.4]} 53. Kxd8 {[%clk 0:00:16.2]} 53... c5 {[%clk 0:00:14.4]} 54.
Kc7 {[%clk 0:00:16.5]} 54... b4 {[%clk 0:00:14.8]} 55. cxb4 {[%clk 0:00:17.4]}
55... cxb4 {[%clk 0:00:15.7]} 56. Kxb7 {[%clk 0:00:17.4]} 56... Kg5 {[%clk
0:00:15.9]} 57. Kb6 {[%clk 0:00:17.3]} 57... h5 {[%clk 0:00:16.8]} 58. Kb5
{[%clk 0:00:17.3]} 1-0

[Event "*** Titled Tuesday Blitz"]
[Site "Chess.com"]
[Date "2021.04.27"]
[Round "3"]
[White "ybruned"]
[Black "Mikhail_Golubev"]
[Result "1/2-1/2"]
[WhiteElo "2359"]
[BlackElo "2573"]
[TimeControl "180+1"]
[EndTime "10:29:00 PDT"]
[Termination "Game drawn - insufficient material"]

1. b3 {[%clk 0:03:00.9]} 1... d6 {[%clk 0:02:58.8]} 2. Bb2 {[%clk 0:03:00]} 2...
Nd7 {[%clk 0:02:59.7]} 3. e3 {[%clk 0:03:00.4]} 3... e5 {[%clk 0:02:59]} 4. d4
{[%clk 0:03:01.1]} 4... exd4 {[%clk 0:02:58.2]} 5. Qxd4 {[%clk 0:03:00.5]} 5...
Ngf6 {[%clk 0:02:55.6]} 6. Nf3 {[%clk 0:03:00.6]} 6... Be7 {[%clk 0:02:53.1]} 7.
Be2 {[%clk 0:03:00.9]} 7... O-O {[%clk 0:02:50.2]} 8. O-O {[%clk 0:03:01.5]}
8... b6 {[%clk 0:02:43]} 9. c4 {[%clk 0:02:59.2]} 9... Bb7 {[%clk 0:02:42.8]}
10. Nc3 {[%clk 0:02:59.8]} 10... Re8 {[%clk 0:02:07.2]} 11. Rad1 {[%clk
0:02:54.2]} 11... Bf8 {[%clk 0:02:04.9]} 12. h3 {[%clk 0:02:41.6]} 12... Nc5
{[%clk 0:01:59.9]} 13. Ne1 {[%clk 0:02:31.7]} 13... a5 {[%clk 0:01:53.4]} 14.
Bf3 {[%clk 0:02:30.9]} 14... Bxf3 {[%clk 0:01:46.5]} 15. Nxf3 {[%clk 0:02:30.3]}
15... Qd7 {[%clk 0:01:45]} 16. Nd5 {[%clk 0:02:18.4]} 16... Nxd5 {[%clk
0:01:42.5]} 17. Qxd5 {[%clk 0:02:16.5]} 17... Qe6 {[%clk 0:01:35.9]} 18. Qxe6
{[%clk 0:02:12.3]} 18... fxe6 {[%clk 0:01:36]} 19. Nd4 {[%clk 0:02:11.8]} 19...
e5 {[%clk 0:01:31.7]} 20. Nb5 {[%clk 0:02:11.3]} 20... Re7 {[%clk 0:01:25.1]}
21. Ba3 {[%clk 0:02:10.9]} 21... Ne6 {[%clk 0:01:17.2]} 22. Nc3 {[%clk
0:02:09.4]} 22... Rf7 {[%clk 0:01:14.6]} 23. Ne4 {[%clk 0:01:58.6]} 23... h6
{[%clk 0:01:09]} 24. Bb2 {[%clk 0:01:53.9]} 24... Kh7 {[%clk 0:01:06.8]} 25. f3
{[%clk 0:01:43.7]} 25... Nc5 {[%clk 0:01:02.2]} 26. Nxc5 {[%clk 0:01:40.2]}
26... bxc5 {[%clk 0:01:01.8]} 27. Bc3 {[%clk 0:01:40.7]} 27... a4 {[%clk
0:00:53.6]} 28. e4 {[%clk 0:01:24.1]} 28... Be7 {[%clk 0:00:52.4]} 29. Rb1
{[%clk 0:01:20.7]} 29... axb3 {[%clk 0:00:51.6]} 30. axb3 {[%clk 0:01:20.4]}
30... Ra3 {[%clk 0:00:50.1]} 31. Rf2 {[%clk 0:01:05.5]} 31... Rf8 {[%clk
0:00:47.6]} 32. Rfb2 {[%clk 0:01:05.7]} 32... Bg5 {[%clk 0:00:38.6]} 33. Kf2
{[%clk 0:01:05.9]} 33... Rfa8 {[%clk 0:00:33]} 34. Ke2 {[%clk 0:01:05.2]} 34...
Kg6 {[%clk 0:00:31.5]} 35. Be1 {[%clk 0:01:00.1]} 35... Ra2 {[%clk 0:00:28.3]}
36. Bf2 {[%clk 0:00:52.2]} 36... Bc1 {[%clk 0:00:25.8]} 37. Rxa2 {[%clk
0:00:51.1]} 37... Rxa2+ {[%clk 0:00:25.5]} 38. Kf1 {[%clk 0:00:51.3]} 38... Bb2
{[%clk 0:00:24]} 39. Be1 {[%clk 0:00:45.1]} 39... Bd4 {[%clk 0:00:22.9]} 40. g3
{[%clk 0:00:36.4]} 40... Rc2 {[%clk 0:00:22]} 41. h4 {[%clk 0:00:31.9]} 41...
Kf6 {[%clk 0:00:20.5]} 42. Rd1 {[%clk 0:00:26.7]} 42... h5 {[%clk 0:00:20.5]}
43. Rb1 {[%clk 0:00:26.4]} 43... g5 {[%clk 0:00:19.8]} 44. hxg5+ {[%clk
0:00:25.9]} 44... Kxg5 {[%clk 0:00:19.9]} 45. Rd1 {[%clk 0:00:26.6]} 45... Rb2
{[%clk 0:00:19.4]} 46. Rd3 {[%clk 0:00:25.9]} 46... Rh2 {[%clk 0:00:18.7]} 47.
Rd2 {[%clk 0:00:23.3]} 47... Rh1+ {[%clk 0:00:17.6]} 48. Ke2 {[%clk 0:00:24]}
48... Rxe1+ {[%clk 0:00:17.3]} 49. Kxe1 {[%clk 0:00:24.2]} 49... Bc3 {[%clk
0:00:17.8]} 50. Ke2 {[%clk 0:00:24.8]} 50... Bxd2 {[%clk 0:00:18.3]} 51. Kxd2
{[%clk 0:00:25.6]} 51... h4 {[%clk 0:00:18.6]} 52. gxh4+ {[%clk 0:00:24.1]}
52... Kxh4 {[%clk 0:00:18.4]} 53. Ke2 {[%clk 0:00:24.7]} 53... Kg3 {[%clk
0:00:18.1]} 54. Ke3 {[%clk 0:00:25.1]} 54... Kg2 {[%clk 0:00:15.8]} 55. Ke2
{[%clk 0:00:25.6]} 55... Kg3 {[%clk 0:00:15.6]} 56. Ke3 {[%clk 0:00:26]} 56...
Kh3 {[%clk 0:00:14]} 57. Kf2 {[%clk 0:00:25.2]} 57... Kh2 {[%clk 0:00:13.7]} 58.
Ke2 {[%clk 0:00:22.3]} 58... Kg2 {[%clk 0:00:13.7]} 59. Ke3 {[%clk 0:00:22.5]}
59... Kf1 {[%clk 0:00:13.9]} 60. f4 {[%clk 0:00:22.9]} 60... exf4+ {[%clk
0:00:14.1]} 61. Kxf4 {[%clk 0:00:23.4]} 61... Ke2 {[%clk 0:00:14.3]} 62. e5
{[%clk 0:00:24]} 62... dxe5+ {[%clk 0:00:13.3]} 63. Kxe5 {[%clk 0:00:24.3]}
63... Kd3 {[%clk 0:00:13.4]} 64. Kd5 {[%clk 0:00:24.8]} 64... Kc3 {[%clk
0:00:13.7]} 65. Kxc5 {[%clk 0:00:25.3]} 65... Kxb3 {[%clk 0:00:14.1]} 66. Kc6
{[%clk 0:00:25.9]} 66... Kxc4 {[%clk 0:00:14.3]} 67. Kxc7 {[%clk 0:00:26.8]}
1/2-1/2

[Event "*** Titled Tuesday Blitz"]
[Site "Chess.com"]
[Date "2021.04.27"]
[Round "3"]
[White "Mazanchenko_Dmitry"]
[Black "GM_LOADING"]
[Result "0-1"]
[WhiteElo "2275"]
[BlackElo "2548"]
[TimeControl "180+1"]
[EndTime "10:29:00 PDT"]
[Termination "GM_LOADING won on time"]

1. e4 {[%clk 0:03:00.9]} 1... e5 {[%clk 0:01:30]} 2. Nf3 {[%clk 0:02:59.9]} 2...
Nc6 {[%clk 0:01:29.9]} 3. d4 {[%clk 0:03:00.4]} 3... exd4 {[%clk 0:01:27.9]} 4.
Bc4 {[%clk 0:03:00.8]} 4... Nf6 {[%clk 0:01:27.6]} 5. e5 {[%clk 0:03:00.5]} 5...
d5 {[%clk 0:01:27.7]} 6. Bb5 {[%clk 0:03:01]} 6... Nd7 {[%clk 0:01:27.5]} 7.
Bxc6 {[%clk 0:03:00.1]} 7... bxc6 {[%clk 0:01:27.4]} 8. e6 {[%clk 0:03:01]} 8...
fxe6 {[%clk 0:01:27.3]} 9. Nxd4 {[%clk 0:03:01.4]} 9... Nb8 {[%clk 0:01:25.3]}
10. O-O {[%clk 0:03:00]} 10... c5 {[%clk 0:01:21.4]} 11. Qh5+ {[%clk 0:02:55.5]}
11... Kd7 {[%clk 0:01:04.4]} 12. Nf3 {[%clk 0:02:16.1]} 12... Nc6 {[%clk
0:00:54.4]} 13. Nc3 {[%clk 0:02:07.9]} 13... Qe8 {[%clk 0:00:23.3]} 14. Ne5+
{[%clk 0:01:51.2]} 14... Nxe5 {[%clk 0:00:20.5]} 15. Qxe5 {[%clk 0:01:52.1]}
15... Bb7 {[%clk 0:00:20.4]} 16. Bf4 {[%clk 0:01:38.6]} 16... Bd6 {[%clk
0:00:20.4]} 17. Qxg7+ {[%clk 0:01:38.5]} 17... Qe7 {[%clk 0:00:20.9]} 18. Qh6
{[%clk 0:01:29]} 18... Rag8 {[%clk 0:00:19.8]} 19. Bxd6 {[%clk 0:01:18.2]} 19...
cxd6 {[%clk 0:00:15.2]} 20. f3 {[%clk 0:01:14.5]} 20... Rg6 {[%clk 0:00:14.5]}
21. Qd2 {[%clk 0:01:12.8]} 21... Rhg8 {[%clk 0:00:13.9]} 22. Rf2 {[%clk
0:01:13.2]} 22... Kc8 {[%clk 0:00:09.9]} 23. Re1 {[%clk 0:01:03]} 23... d4
{[%clk 0:00:09.3]} 24. Ne4 {[%clk 0:00:59.3]} 24... Kb8 {[%clk 0:00:09.3]} 25.
c3 {[%clk 0:00:57.7]} 25... e5 {[%clk 0:00:09.2]} 26. cxd4 {[%clk 0:00:56.1]}
26... cxd4 {[%clk 0:00:09.7]} 27. Qb4 {[%clk 0:00:51]} 27... h5 {[%clk 0:00:09]}
28. a4 {[%clk 0:00:43.4]} 28... h4 {[%clk 0:00:09.2]} 29. a5 {[%clk 0:00:41.9]}
29... Ka8 {[%clk 0:00:09.8]} 30. Qb5 {[%clk 0:00:31]} 30... Qg7 {[%clk
0:00:05.6]} 31. Ree2 {[%clk 0:00:27]} 31... h3 {[%clk 0:00:04.9]} 32. g4 {[%clk
0:00:11.5]} 32... Rxg4+ {[%clk 0:00:04.8]} 33. fxg4 {[%clk 0:00:09.5]} 33...
Qxg4+ {[%clk 0:00:05.4]} 34. Ng3 {[%clk 0:00:09.6]} 34... Qe6 {[%clk 0:00:05.7]}
35. a6 {[%clk 0:00:05.7]} 35... Be4 {[%clk 0:00:05.9]} 36. Rxe4 {[%clk
0:00:04.3]} 36... Qc8 {[%clk 0:00:06.3]} 37. Qb7+ {[%clk 0:00:03.1]} 37... Qxb7
{[%clk 0:00:06.5]} 38. axb7+ {[%clk 0:00:04]} 38... Kxb7 {[%clk 0:00:07.4]} 39.
Kf1 {[%clk 0:00:04.5]} 39... Kc6 {[%clk 0:00:07.8]} 40. Rh4 {[%clk 0:00:04.4]}
40... Kd5 {[%clk 0:00:08.1]} 41. Rxh3 {[%clk 0:00:04.8]} 41... Rc8 {[%clk
0:00:08.4]} 42. Ke2 {[%clk 0:00:04.9]} 42... Rc2+ {[%clk 0:00:08.1]} 43. Kf1
{[%clk 0:00:05.6]} 43... Rc1+ {[%clk 0:00:08.6]} 44. Kg2 {[%clk 0:00:06.5]}
44... d3 {[%clk 0:00:09.1]} 45. Nf5 {[%clk 0:00:05.5]} 45... e4 {[%clk
0:00:08.3]} 46. Ne7+ {[%clk 0:00:04.8]} 46... Kd4 {[%clk 0:00:06.2]} 47. Rf4
{[%clk 0:00:04.3]} 47... d2 {[%clk 0:00:05.6]} 48. Rxe4+ {[%clk 0:00:02.8]}
48... Kxe4 {[%clk 0:00:06]} 0-1

[Event "*** Titled Tuesday Blitz"]
[Site "Chess.com"]
[Date "2021.04.27"]
[Round "3"]
[White "MarcoRiehle"]
[Black "mishanick"]
[Result "0-1"]
[WhiteElo "2706"]
[BlackElo "3016"]
[TimeControl "180+1"]
[EndTime "10:29:02 PDT"]
[Termination "mishanick won by resignation"]

1. e4 {[%clk 0:03:00.9]} 1... c5 {[%clk 0:03:00.4]} 2. a3 {[%clk 0:02:59.8]}
2... Nc6 {[%clk 0:02:59]} 3. b4 {[%clk 0:02:59.8]} 3... Nf6 {[%clk 0:02:59.8]}
4. b5 {[%clk 0:03:00]} 4... Nd4 {[%clk 0:02:59.6]} 5. c3 {[%clk 0:03:00.3]} 5...
Ne6 {[%clk 0:02:59.6]} 6. e5 {[%clk 0:03:00.8]} 6... Nd5 {[%clk 0:02:59.9]} 7.
Bc4 {[%clk 0:03:00.6]} 7... Nb6 {[%clk 0:02:59]} 8. Ba2 {[%clk 0:03:00.6]} 8...
d5 {[%clk 0:02:58.6]} 9. d4 {[%clk 0:02:57.9]} 9... g6 {[%clk 0:02:58.3]} 10. h4
{[%clk 0:02:56]} 10... h5 {[%clk 0:02:42.4]} 11. Nf3 {[%clk 0:02:50.4]} 11...
Bg7 {[%clk 0:02:42.8]} 12. Be3 {[%clk 0:02:41.7]} 12... Qc7 {[%clk 0:02:40.1]}
13. Nbd2 {[%clk 0:02:30.6]} 13... a6 {[%clk 0:02:35.4]} 14. bxa6 {[%clk
0:02:18.2]} 14... Rxa6 {[%clk 0:02:36.3]} 15. O-O {[%clk 0:02:11.4]} 15... Rxa3
{[%clk 0:02:23.8]} 16. Ng5 {[%clk 0:01:58.8]} 16... Nxg5 {[%clk 0:02:21.5]} 17.
hxg5 {[%clk 0:01:55.6]} 17... c4 {[%clk 0:01:24.8]} 18. Bxc4 {[%clk 0:01:42.7]}
18... Rxa1 {[%clk 0:01:24.6]} 19. Bb5+ {[%clk 0:01:42.4]} 19... Bd7 {[%clk
0:01:25.2]} 20. Bxd7+ {[%clk 0:01:41.8]} 20... Nxd7 {[%clk 0:01:26.1]} 21. Qxa1
{[%clk 0:01:42]} 21... O-O {[%clk 0:01:26]} 22. Rc1 {[%clk 0:01:32.2]} 22... b5
{[%clk 0:01:20.1]} 23. Qa6 {[%clk 0:01:26.5]} 23... Rb8 {[%clk 0:01:18.6]} 24.
e6 {[%clk 0:01:11.3]} 24... Nf8 {[%clk 0:01:04.5]} 25. exf7+ {[%clk 0:01:10.8]}
25... Kxf7 {[%clk 0:01:05.4]} 26. Nb3 {[%clk 0:00:51.8]} 26... Qb6 {[%clk
0:00:58.6]} 27. Qa2 {[%clk 0:00:50.6]} 27... Ne6 {[%clk 0:00:54.9]} 28. Re1
{[%clk 0:00:38.9]} 28... Qc6 {[%clk 0:00:52.9]} 29. Na5 {[%clk 0:00:27.8]} 29...
Qd7 {[%clk 0:00:48.7]} 30. Nb3 {[%clk 0:00:26]} 30... Qc6 {[%clk 0:00:46.9]} 31.
Bd2 {[%clk 0:00:22.2]} 31... Ra8 {[%clk 0:00:38.7]} 32. Qc2 {[%clk 0:00:21.6]}
32... Nxd4 {[%clk 0:00:24.6]} 33. Nxd4 {[%clk 0:00:20.6]} 33... Bxd4 {[%clk
0:00:25.2]} 34. Qd3 {[%clk 0:00:21.5]} 34... Bg7 {[%clk 0:00:24.3]} 35. Rb1
{[%clk 0:00:22]} 35... Qc4 {[%clk 0:00:18.4]} 36. Qf3+ {[%clk 0:00:20.8]} 36...
Kg8 {[%clk 0:00:18.5]} 37. Re1 {[%clk 0:00:20.7]} 37... e5 {[%clk 0:00:18.5]}
38. Qh3 {[%clk 0:00:14.4]} 38... Qc6 {[%clk 0:00:18.6]} 39. Rd1 {[%clk
0:00:10.4]} 39... Rf8 {[%clk 0:00:17.6]} 40. Be3 {[%clk 0:00:10.3]} 40... Rf5
{[%clk 0:00:17.7]} 41. Qh4 {[%clk 0:00:08.3]} 41... e4 {[%clk 0:00:16.6]} 42.
Bd4 {[%clk 0:00:07.2]} 42... Bxd4 {[%clk 0:00:17]} 43. Rxd4 {[%clk 0:00:07.4]}
43... Qxc3 {[%clk 0:00:16.4]} 44. Rd1 {[%clk 0:00:07.9]} 44... b4 {[%clk
0:00:16.1]} 45. Qh2 {[%clk 0:00:07.2]} 45... Qe5 {[%clk 0:00:15.8]} 46. Qh3
{[%clk 0:00:06.6]} 46... Qf4 {[%clk 0:00:16.3]} 47. Rf1 {[%clk 0:00:05.9]} 47...
e3 {[%clk 0:00:15.9]} 48. Kh1 {[%clk 0:00:02.7]} 48... b3 {[%clk 0:00:15.4]} 49.
f3 {[%clk 0:00:02]} 49... b2 {[%clk 0:00:15.2]} 50. g4 {[%clk 0:00:01.6]} 50...
e2 {[%clk 0:00:14.9]} 51. Re1 {[%clk 0:00:01.5]} 51... Qxf3+ {[%clk 0:00:15]}
52. Qxf3 {[%clk 0:00:02.4]} 52... Rxf3 {[%clk 0:00:15.9]} 53. Kg2 {[%clk
0:00:02.8]} 53... Rf1 {[%clk 0:00:16.1]} 54. Rxe2 {[%clk 0:00:02.7]} 54... b1=Q
{[%clk 0:00:16.5]} 55. Re8+ {[%clk 0:00:03.6]} 55... Kf7 {[%clk 0:00:16.7]} 56.
Re7+ {[%clk 0:00:04.5]} 56... Kxe7 {[%clk 0:00:16.6]} 57. gxh5 {[%clk
0:00:05.4]} 57... Rg1+ {[%clk 0:00:17.2]} 0-1

[Event "*** Titled Tuesday Blitz"]
[Site "Chess.com"]
[Date "2021.04.27"]
[Round "3"]
[White "tapu2"]
[Black "Sergey85Rodchenkov"]
[Result "0-1"]
[WhiteElo "2714"]
[BlackElo "2517"]
[TimeControl "180+1"]
[EndTime "10:29:02 PDT"]
[Termination "Sergey85Rodchenkov won by checkmate"]

1. e4 {[%clk 0:03:00.9]} 1... c5 {[%clk 0:02:59.4]} 2. Nc3 {[%clk 0:03:00.6]}
2... e6 {[%clk 0:02:59.2]} 3. f4 {[%clk 0:02:59.9]} 3... d5 {[%clk 0:02:58.3]}
4. Nf3 {[%clk 0:02:59.8]} 4... Nc6 {[%clk 0:02:58]} 5. Bb5 {[%clk 0:02:59.1]}
5... Ne7 {[%clk 0:02:57.3]} 6. Ne5 {[%clk 0:02:37.3]} 6... d4 {[%clk 0:02:48.2]}
7. Na4 {[%clk 0:02:31.6]} 7... Qa5 {[%clk 0:02:37.9]} 8. Qe2 {[%clk 0:02:18.9]}
8... f6 {[%clk 0:02:24.8]} 9. Nxc6 {[%clk 0:02:17.3]} 9... bxc6 {[%clk
0:02:24.5]} 10. Bc4 {[%clk 0:01:45.5]} 10... Qxa4 {[%clk 0:02:23.2]} 11. O-O
{[%clk 0:01:45.9]} 11... Ng6 {[%clk 0:01:58.7]} 12. d3 {[%clk 0:01:33.6]} 12...
Be7 {[%clk 0:01:49.3]} 13. Qh5 {[%clk 0:01:32.8]} 13... Kd8 {[%clk 0:01:31.4]}
14. Bd2 {[%clk 0:01:28.3]} 14... Rb8 {[%clk 0:01:24.8]} 15. b3 {[%clk
0:01:20.1]} 15... Qa3 {[%clk 0:01:24]} 16. Rab1 {[%clk 0:01:07.8]} 16... Rb4
{[%clk 0:01:08.4]} 17. Bxb4 {[%clk 0:00:47.3]} 17... Qxb4 {[%clk 0:01:06]} 18.
Qg4 {[%clk 0:00:39]} 18... f5 {[%clk 0:00:51.4]} 19. exf5 {[%clk 0:00:38.7]}
19... exf5 {[%clk 0:00:51.5]} 20. Qf3 {[%clk 0:00:38.9]} 20... Kc7 {[%clk
0:00:48.3]} 21. Rbe1 {[%clk 0:00:37.9]} 21... Bd6 {[%clk 0:00:48.3]} 22. g3
{[%clk 0:00:36.6]} 22... Ne7 {[%clk 0:00:39.2]} 23. Qh5 {[%clk 0:00:36.7]} 23...
g6 {[%clk 0:00:38.9]} 24. Qh6 {[%clk 0:00:36.8]} 24... Rd8 {[%clk 0:00:20.5]}
25. Qxh7 {[%clk 0:00:33.5]} 25... Rd7 {[%clk 0:00:20.4]} 26. Qh8 {[%clk
0:00:24.1]} 26... Nd5 {[%clk 0:00:19.4]} 27. Bxd5 {[%clk 0:00:23.8]} 27... cxd5
{[%clk 0:00:18.7]} 28. Re8 {[%clk 0:00:24.5]} 28... Bb7 {[%clk 0:00:16.7]} 29.
Rf2 {[%clk 0:00:15.6]} 29... c4 {[%clk 0:00:07.3]} 30. Qf6 {[%clk 0:00:13.1]}
30... Qb6 {[%clk 0:00:06.4]} 31. Qxg6 {[%clk 0:00:12.3]} 31... Ba6 {[%clk
0:00:02.8]} 32. Re6 {[%clk 0:00:11.7]} 32... cxd3 {[%clk 0:00:02.2]} 33. cxd3
{[%clk 0:00:11.8]} 33... Bxd3 {[%clk 0:00:02.4]} 34. h4 {[%clk 0:00:11.2]} 34...
Be4 {[%clk 0:00:02.7]} 35. Qf6 {[%clk 0:00:09.3]} 35... d3 {[%clk 0:00:03.1]}
36. Qc3+ {[%clk 0:00:09.4]} 36... Bc5 {[%clk 0:00:03.1]} 37. b4 {[%clk
0:00:09.5]} 37... Qxb4 {[%clk 0:00:02]} 38. Qxb4 {[%clk 0:00:07.6]} 38... Bxb4
{[%clk 0:00:02.3]} 39. Rb2 {[%clk 0:00:07.7]} 39... Bc5+ {[%clk 0:00:02.4]} 40.
Kf1 {[%clk 0:00:08.3]} 40... Bd4 {[%clk 0:00:02.6]} 41. Rb4 {[%clk 0:00:08]}
41... Bc3 {[%clk 0:00:02.7]} 42. Rb3 {[%clk 0:00:07.9]} 42... d4 {[%clk
0:00:02.1]} 43. Kf2 {[%clk 0:00:06.8]} 43... d2 {[%clk 0:00:02.2]} 44. Rxc3+
{[%clk 0:00:07.3]} 44... dxc3 {[%clk 0:00:01.9]} 45. Rc6+ {[%clk 0:00:08.1]}
45... Kxc6 {[%clk 0:00:01.7]} 46. Ke3 {[%clk 0:00:09]} 46... Kc5 {[%clk
0:00:02.4]} 47. g4 {[%clk 0:00:08.8]} 47... Kc4 {[%clk 0:00:03.1]} 48. gxf5
{[%clk 0:00:08.6]} 48... d1=Q {[%clk 0:00:04]} 49. Kxe4 {[%clk 0:00:09]} 49...
Qd3+ {[%clk 0:00:04.5]} 50. Ke5 {[%clk 0:00:09.9]} 50... Qd4+ {[%clk 0:00:05]}
51. Ke6 {[%clk 0:00:10.2]} 51... Qd6# {[%clk 0:00:05.6]} 0-1